bitfinex/quotes_SOLUSD_20240808
["timestamp","ask_amount","ask_price","bid_price","bid_amount"]
[1723133706958,0.8297811,162.55,162.44,1.23072068]
[1723133707273,0.8297811,162.55,162.3,40.0]
[1723133707274,16.2103811,162.55,162.36,6.2863]
[1723133707451,1.53884504,162.54,162.45,6.1556]
[1723133707781,16.9046811,162.55,162.44,15.3894]
[1723133708261,16.9046811,162.55,162.48,6.1544]
[1723133708464,16.9046811,162.55,162.49,6.154]
[1723133708661,0.8297811,162.55,162.42,48.84]
[1723133708986,0.8297811,162.55,162.43,1.23060544]
[1723133709156,0.8297811,162.55,162.54,6.1523]
[1723133709971,22.61935069,162.71,162.54,70.07019801]
[1723133709972,6.0367,162.7,162.54,70.07019801]
[1723133710176,17.2410811,162.71,162.65,6.1479]
[1723133710382,17.2410811,162.71,162.61,6.1493]
[1723133710680,0.8297811,162.71,162.56,1.22982645]
[1723133710881,0.8297811,162.71,162.69,21.5123]
[1723133711086,0.8297811,162.71,162.69,15.366]
[1723133711304,0.8297811,162.71,162.66,6.1476]
[1723133711584,0.8297811,162.71,162.69,6.1466]
[1723133711784,0.8297811,162.71,162.67,6.1472]
[1723133711963,0.8297811,162.71,162.58,48.84]
[1723133712287,0.8297811,162.71,162.69,6.1464]
[1723133712663,0.8297811,162.71,162.59,21.22943829]
[1723133712664,0.8297811,162.71,162.67,6.147]
[1723133712899,6.147,162.69,162.6,6.1498]
[1723133713185,17.4484974,162.68,162.5,6.11]
[1723133713363,1.53775703,162.67,162.5,6.11]
[1723133713864,17.44908542,162.68,162.58,15.3766]
[1723133714063,1.53726876,162.67,162.54,15.3803]
[1723133714395,6.15,162.61,162.54,6.1523]
[1723133714683,15.9114,162.68,162.44,6.2244]
[1723133714860,20.0,162.67,162.45,1.23058894]
[1723133715059,6.1505,162.59,162.44,55.0644]
[1723133715262,35.9114,162.68,162.45,6.1555]
[1723133715263,6.1531,162.52,162.45,6.1555]
[1723133715481,1.53865666,162.51,162.36,54.8617]
[1723133715685,41.53865191,162.62,162.36,54.8617]
[1723133715886,15.3764,162.59,162.36,54.8617]
[1723133716063,1.5386394,162.61,162.41,48.84]
[1723133716265,6.1504,162.59,162.4,48.84]
[1723133716460,15.3707,162.65,162.51,15.3835]
[1723133716863,6.1492,162.63,162.55,6.1519]
[1723133717071,1.53771819,162.62,162.44,48.84]
[1723133717402,15.3728,162.63,162.4,48.84]
[1723133717684,6.153,162.53,162.36,54.8617]
[1723133717887,6.153,162.53,162.36,6.0217]
[1723133718062,1.5388138,162.56,162.36,6.0217]
[1723133718063,1.53878433,162.52,162.41,6.1569]
[1723133718264,1.53910839,162.51,162.41,6.1569]
[1723133718464,6.1553,162.46,162.39,6.158]
[1723133718694,6.1561,162.44,162.36,6.1588]
[1723133718895,20.0,162.54,162.37,1.23151408]
[1723133719113,16.363,162.55,162.32,48.84]
[1723133719269,6.1539,162.5,162.33,1.23128966]
[1723133719463,16.363,162.55,162.33,1.23128966]
[1723133719676,6.1549,162.48,162.39,15.3945]
[1723133719868,16.363,162.55,162.34,1.23119532]
[1723133720069,1.5389807,162.54,162.42,15.3918]
[1723133720289,30.7645,162.53,162.3,6.1835]
[1723133720492,48.84,162.51,162.3,6.1835]
[1723133720696,15.387,162.48,162.31,1.23168869]
[1723133721089,6.1558,162.45,162.34,15.3994]
[1723133721391,6.1561,162.44,162.37,6.1587]
[1723133721597,15.387,162.48,162.3,15.4028]
[1723133721598,15.7746,162.42,162.3,15.4028]
[1723133721793,7.69719814,162.41,162.24,12.2546]
[1723133721971,15.7746,162.42,162.25,1.23175326]
[1723133722172,15.7746,162.42,162.33,15.4003]
[1723133722375,15.7746,162.42,162.37,6.1587]
[1723133722586,15.7746,162.42,162.25,1.23169164]
[1723133722804,15.7746,162.42,162.26,48.84]
[1723133722985,6.43513107,162.48,162.27,1.23138421]
[1723133723304,6.43513107,162.48,162.26,6.1628]
[1723133723305,15.3945,162.4,162.26,6.1628]
[1723133723506,48.84,162.42,162.26,6.1628]
[1723133723507,6.16,162.34,162.26,6.1627]
[1723133723686,7.70074188,162.33,162.24,6.1634]
[1723133723872,15.7746,162.35,162.18,1.23239219]
[1723133724220,6.1618,162.29,162.22,6.1644]
[1723133724512,6.1606,162.33,162.26,6.1629]
[1723133724705,6.1608,162.32,162.24,6.1634]
[1723133724997,1.54064228,162.32,162.22,15.4109]
[1723133725196,1.54083236,162.34,162.22,15.4109]
[1723133725382,1.54088424,162.31,162.22,15.4109]
[1723133725584,7.70218424,162.31,162.22,15.4109]
[1723133725773,15.7746,162.35,162.15,10.487135]
[1723133725774,15.4005,162.34,162.15,10.487135]
[1723133725978,15.4005,162.34,162.19,6.1655]
[1723133725979,6.1627,162.27,162.19,6.1655]
[1723133726173,6.1631,162.26,162.18,21.5805]
[1723133726377,6.1626,162.27,162.19,6.1655]
[1723133726677,15.7746,162.35,162.2,1.23296948]
[1723133726882,15.7746,162.35,162.15,0.8297811]
[1723133726883,15.7746,162.35,162.17,48.84]
[1723133727273,15.7746,162.35,162.23,15.4101]
[1723133727472,6.1612,162.31,162.23,15.4101]
[1723133727672,6.1599,162.34,162.25,6.1629]
[1723133727899,6.1599,162.34,162.27,6.1624]
[1723133728221,15.7746,162.35,162.25,6.163]
[1723133728379,15.7746,162.35,162.26,16.63925979]
[1723133728578,15.7746,162.35,162.32,6.1604]
[1723133728802,15.7746,162.35,162.28,6.162]
[1723133729113,15.7746,162.35,162.21,48.84]
[1723133729114,15.7746,162.35,162.31,15.4016]
[1723133729627,22.6323,162.43,162.34,15.3992]
[1723133729934,16.4756,162.43,162.3,15.4032]
[1723133730122,1.53973354,162.42,162.28,6.1619]
[1723133730412,1.53973354,162.42,162.21,48.84]
[1723133730413,1.54011125,162.41,162.26,15.407]
[1723133730710,1.54011125,162.41,162.16,48.84]
[1723133730711,6.1611,162.31,162.16,48.84]
[1723133730877,48.84,162.4,162.16,48.84]
[1723133730878,6.1614,162.3,162.23,6.164]
[1723133731077,15.3976,162.37,162.24,6.1636]
[1723133731078,1.54077599,162.36,162.24,6.1636]
[1723133731273,48.84,162.4,162.17,1.2325051]
[1723133731503,20.0,162.39,162.18,1.23239173]
[1723133731674,6.1619,162.29,162.12,48.84]
[1723133731884,6.1626,162.27,162.12,48.84]
[1723133732081,1.54104517,162.28,162.18,6.1656]
[1723133732374,6.1629,162.27,162.19,6.1655]
[1723133732584,22.6691,162.3,162.26,6.1629]
[1723133732793,22.6691,162.3,162.2,1.2329411]
[1723133732794,16.5588,162.3,162.24,6.1634]
[1723133733021,21.9064,162.37,162.28,6.162]
[1723133733307,6.1609,162.32,162.16,48.84]
[1723133733598,6.1606,162.33,162.25,6.1632]
[1723133733820,21.9064,162.37,162.26,1.23251006]
[1723133733981,6.16,162.34,162.26,6.1626]
[1723133734183,6.1614,162.3,162.21,6.1645]
[1723133734380,1.54039948,162.33,162.16,48.84]
[1723133734381,1.54081,162.36,162.16,48.84]
[1723133734606,37.3033,162.37,162.25,6.1632]
[1723133734782,21.9064,162.37,162.24,15.4087]
[1723133734981,1.54059891,162.36,162.2,21.5776]
[1723133735201,6.1617,162.3,162.23,6.1639]
[1723133735909,41.9064,162.37,162.24,1.23270618]
[1723133736206,21.9064,162.37,162.24,20.0]
[1723133736417,15.3984,162.36,162.17,1.23251635]
[1723133736603,15.3984,162.36,162.17,21.23251635]
[1723133736779,15.3984,162.36,162.24,6.1637]
[1723133736986,15.4009,162.33,162.18,15.4144]
[1723133737183,6.1624,162.28,162.18,15.4144]
[1723133737490,6.1624,162.28,162.15,0.8297811]
[1723133737491,6.1607,162.32,162.24,6.1634]
[1723133737724,1.54064645,162.36,162.15,0.8297811]
[1723133737905,6.1631,162.26,162.19,6.1652]
[1723133738093,6.1627,162.27,162.2,6.1652]
[1723133738624,15.4034,162.31,162.15,2.06283983]
[1723133738994,15.3996,162.35,162.15,2.06283983]
[1723133739195,15.7961,162.37,162.23,48.84]
[1723133739435,15.7961,162.37,162.17,16.4995]
[1723133739436,15.7961,162.37,162.24,20.0]
[1723133739901,15.7961,162.37,162.28,6.1618]
[1723133740216,1.54027819,162.36,162.22,15.4106]
[1723133740388,1.54027819,162.36,162.18,20.0]
[1723133740389,1.54027819,162.36,162.15,0.8297811]
[1723133740583,6.4773,162.31,162.21,6.1646]
[1723133740814,6.4773,162.31,162.25,6.1633]
[1723133741121,6.4773,162.31,162.25,6.1632]
[1723133741415,6.4773,162.31,162.16,1.23265709]
[1723133741619,2.78909439,162.42,162.16,50.07265709]
[1723133741785,6.1573,162.41,162.25,48.84]
[1723133741992,16.4937,162.45,162.36,6.1591]
[1723133742320,6.1566,162.43,162.36,6.1591]
[1723133742691,16.4937,162.45,162.38,6.1583]
[1723133742891,16.4937,162.45,162.42,6.1568]
[1723133743096,6.1733,162.48,162.41,15.3929]
[1723133743292,22.61697973,162.52,162.44,15.3896]
[1723133743510,22.61697973,162.52,162.45,1.23090005]
[1723133743511,16.1906,162.52,162.45,1.23090005]
[1723133743814,16.1906,162.52,162.38,21.2309002]
[1723133743985,16.1906,162.52,162.46,6.1553]
[1723133744200,16.1906,162.52,162.38,21.2309002]
[1723133744201,16.1906,162.52,162.44,6.1557]
[1723133744427,22.344,162.52,162.45,7.38667857]
[1723133744592,22.344,162.52,162.45,6.1557]
[1723133744793,16.1906,162.52,162.4,1.23101461]
[1723133745008,16.1906,162.52,162.44,6.1558]
[1723133745289,16.1906,162.52,162.34,20.0]
[1723133745290,6.1541,162.5,162.41,6.1571]
[1723133745488,16.1906,162.52,162.36,1.23107546]
[1723133745912,6.1542,162.49,162.42,6.1567]
[1723133746139,16.1906,162.52,162.43,1.23110575]
[1723133746417,16.1906,162.52,162.45,15.389]
[1723133746831,22.3437,162.52,162.45,21.5446]
[1723133747013,16.1906,162.52,162.45,15.389]
[1723133747689,16.1906,162.52,162.43,6.1561]
[1723133747920,16.1906,162.52,162.41,15.3927]
[1723133748095,16.1906,162.52,162.46,6.1551]
[1723133748414,16.1906,162.52,162.42,1.23093426]
[1723133748618,6.1535,162.51,162.43,6.1564]
[1723133748827,1.53885208,162.51,162.34,20.0]
[1723133749004,16.1906,162.52,162.34,20.0]
[1723133749194,16.1906,162.52,162.35,1.23115797]
[1723133749195,6.1543,162.49,162.35,1.23115797]
[1723133749392,6.1543,162.49,162.42,6.1568]
[1723133749612,6.1543,162.49,162.36,1.2312302]
[1723133749821,6.1538,162.51,162.43,6.1564]
[1723133750122,16.1906,162.52,162.42,6.1568]
[1723133750123,17.72950449,162.52,162.42,6.1568]
[1723133750292,6.1538,162.5,162.4,15.3936]
[1723133750492,1.53891925,162.5,162.36,15.3978]
[1723133750801,6.1569,162.42,162.35,6.1594]
[1723133751102,16.1906,162.52,162.38,15.3953]
[1723133751319,16.1906,162.52,162.35,48.84]
[1723133751488,22.3437,162.52,162.42,15.3917]
[1723133751688,16.1906,162.52,162.45,15.3887]
[1723133752087,22.3438,162.52,162.45,15.3887]
[1723133752288,22.3438,162.52,162.39,48.84]
[1723133752289,16.1906,162.52,162.5,6.1537]
[1723133752513,15.7698,162.6,162.51,6.1533]
[1723133752689,6.42890511,162.59,162.52,7.38355052]
[1723133752893,15.7698,162.6,162.53,6.1526]
[1723133753092,6.1513,162.57,162.51,15.3831]
[1723133753321,1.53825904,162.56,162.39,48.84]
[1723133753529,6.1535,162.51,162.43,15.3908]
[1723133753696,15.7698,162.6,162.46,15.3874]
[1723133754096,6.1517,162.56,162.46,15.3874]
[1723133754401,15.7698,162.6,162.48,6.1545]
[1723133754402,6.152,162.55,162.48,6.1545]
[1723133754789,6.1523,162.54,162.46,15.3874]
[1723133754988,6.1523,162.54,162.47,6.1549]
[1723133755215,1.53853793,162.53,162.42,15.3917]
[1723133755420,1.53853793,162.53,162.42,21.5484]
[1723133755597,1.53853793,162.53,162.41,6.1572]
[1723133755799,1.53853793,162.53,162.41,15.3921]
[1723133755997,15.3766,162.59,162.42,1.23110244]
[1723133756207,6.1519,162.56,162.48,6.1545]
[1723133756410,15.7698,162.6,162.52,6.1529]
[1723133756610,21.92,162.6,162.51,1.23056272]
[1723133756831,6.1504,162.59,162.51,1.23056272]
[1723133757005,15.7698,162.6,162.51,1.23051935]
[1723133757204,15.7698,162.6,162.51,1.23051556]
[1723133757400,15.7698,162.6,162.5,15.3837]
[1723133757602,21.9199,162.6,162.53,15.3811]
[1723133757807,6.1504,162.59,162.53,15.3811]
[1723133758324,15.7698,162.6,162.53,15.3811]
[1723133758698,15.7698,162.6,162.54,1.23035013]
[1723133758938,15.9123,162.67,162.61,6.1496]
[1723133759122,12.57455743,162.66,162.59,15.3754]
[1723133759297,15.9123,162.67,162.6,1.22981496]
[1723133759520,15.9123,162.67,162.53,48.84]
[1723133759722,15.9123,162.67,162.61,15.3738]
[1723133759959,22.0597,162.67,162.59,6.1503]
[1723133760102,17.44980188,162.67,162.57,15.3773]
[1723133760304,15.9123,162.67,162.54,20.0]
[1723133760509,6.1481,162.65,162.49,20.0]
[1723133760713,6.1481,162.66,162.56,15.3783]
[1723133761006,6.1482,162.65,162.58,6.1505]
[1723133761211,1.53764658,162.64,162.52,15.3821]
[1723133761405,1.53764658,162.64,162.44,55.4214]
[1723133761406,15.3736,162.62,162.49,6.1541]
[1723133761613,15.3736,162.62,162.44,6.5814]
[1723133761614,64.2101,162.66,162.51,15.3832]
[1723133761920,15.3726,162.63,162.47,15.3867]
[1723133762122,1.53824149,162.62,162.47,15.3867]
[1723133762467,16.2884,162.6,162.38,2.74024667]
[1723133762609,6.153,162.53,162.46,6.1553]
[1723133762914,22.766,162.6,162.4,1.23088696]
[1723133763118,1.53856747,162.59,162.44,15.3897]
[1723133763304,6.1538,162.5,162.44,15.3897]
[1723133763645,1.53856747,162.59,162.28,15.234]
[1723133763646,15.7571,162.48,162.36,15.3974]
[1723133763857,15.7571,162.48,162.37,1.23146953]
[1723133764020,15.7571,162.48,162.39,15.3947]
[1723133764222,6.1566,162.43,162.36,6.1588]
[1723133764423,15.7571,162.48,162.35,15.398]
[1723133764840,15.7571,162.48,162.39,6.1579]
[1723133764841,6.1553,162.46,162.39,6.1579]
[1723133765023,6.1565,162.43,162.36,6.1591]
[1723133765223,6.1553,162.46,162.39,6.1579]
[1723133765442,6.1553,162.46,162.38,15.3954]
[1723133765654,6.155,162.47,162.38,15.3954]
[1723133765946,1.53910498,162.47,162.38,15.3954]
[1723133766149,15.7571,162.48,162.41,15.3926]
[1723133766352,15.7571,162.48,162.42,1.23113121]
[1723133766521,15.7571,162.48,162.34,1.231025]
[1723133766940,15.7571,162.48,162.33,48.84]
[1723133767162,6.1553,162.46,162.4,21.5507]
[1723133767335,15.7571,162.48,162.41,1.23135163]
[1723133767533,15.7571,162.48,162.43,6.1561]
[1723133767828,6.1554,162.46,162.4,15.3932]
[1723133768255,6.155,162.47,162.4,15.3932]
[1723133768550,15.7571,162.48,162.41,6.1572]
[1723133768729,6.1553,162.46,162.4,15.3932]
[1723133768930,15.7571,162.48,162.41,6.1571]
[1723133769126,15.7571,162.48,162.43,15.3905]
[1723133769322,6.1524,162.54,162.46,6.155]
[1723133769526,31.1275,162.59,162.38,1.23091571]
[1723133769749,31.1275,162.59,162.46,6.1552]
[1723133769983,31.1275,162.59,162.45,6.1557]
[1723133770264,15.3789,162.56,162.46,6.1552]
[1723133770428,15.7506,162.59,162.48,15.3865]
[1723133770429,6.1522,162.55,162.48,15.3865]
[1723133770627,15.7506,162.59,162.39,1.23080174]
[1723133770864,15.7506,162.59,162.38,20.0]
[1723133770865,15.378,162.57,162.44,6.1559]
[1723133771155,6.1534,162.52,162.45,6.1557]
[1723133771361,1.53874578,162.51,162.43,15.3906]
[1723133771549,6.1546,162.48,162.41,6.1572]
[1723133771759,6.1546,162.48,162.3,2.74993597]
[1723133771760,6.1554,162.46,162.4,6.1575]
[1723133772070,1.53915293,162.46,162.39,15.3944]
[1723133772362,6.1553,162.47,162.39,15.3944]
[1723133772562,6.1553,162.46,162.4,6.1576]
[1723133772746,1.53928383,162.45,162.39,15.3944]
[1723133773066,30.765,162.53,162.3,1.23142716]
[1723133773271,6.1564,162.44,162.26,6.1741]
[1723133773555,6.1573,162.41,162.26,6.1741]
[1723133773736,1.53976865,162.4,162.26,6.1741]
[1723133773936,1.53976865,162.4,162.24,48.84]
[1723133773937,22.0021,162.47,162.21,15.0057]
[1723133774141,6.1599,162.34,162.2,55.3649]
[1723133774368,48.84,162.45,162.2,55.3649]
[1723133774369,15.394,162.41,162.2,55.3649]
[1723133774535,1.54026501,162.4,162.29,6.1616]
[1723133774733,15.394,162.41,162.2,55.3649]
[1723133774734,1.54026861,162.39,162.2,55.3649]
[1723133774934,95.01,162.45,162.21,1.23221108]
[1723133775134,15.3925,162.42,162.2,55.3649]
[1723133775361,6.1593,162.36,162.29,6.1616]
[1723133775542,6.16,162.34,162.28,6.1621]
[1723133775741,1.54038241,162.33,162.27,6.1625]
[1723133775970,1.54038241,162.33,162.2,55.3649]
[1723133775971,15.3951,162.39,162.3,6.1613]
[1723133776279,15.3922,162.42,162.31,1.23209196]
[1723133776564,6.1589,162.37,162.3,6.161]
[1723133776767,1.54008988,162.36,162.2,55.3649]
[1723133776950,1.54008988,162.36,162.17,2.77218631]
[1723133776951,6.1606,162.32,162.25,6.163]
[1723133777136,1.54056165,162.42,162.16,48.84]
[1723133777333,6.159,162.37,162.3,6.1612]
[1723133777548,15.392,162.43,162.18,1.23208231]
[1723133777881,30.7888,162.4,162.16,51.63466812]
[1723133778166,30.7888,162.4,162.17,1.16779006]
[1723133778465,15.3967,162.38,162.28,6.162]
[1723133778664,6.1595,162.35,162.29,6.1616]
[1723133778869,6.1618,162.29,162.23,6.164]
[1723133779093,37.5682,162.34,162.23,6.1639]
[1723133779383,6.1614,162.3,162.15,2.06258142]
[1723133779687,1.54085531,162.29,162.15,0.8297811]
[1723133779845,6.1633,162.25,162.18,6.1658]
[1723133780040,1.54133333,162.24,162.16,6.1663]
[1723133780247,15.4082,162.26,162.15,0.8297811]
[1723133780541,68.84,162.33,162.15,0.8297811]
[1723133780542,48.84,162.33,162.15,0.8297811]
[1723133780756,6.1625,162.28,162.21,6.1647]
[1723133780950,6.1625,162.27,162.21,6.1647]
[1723133781164,6.1629,162.26,162.15,0.8297811]
[1723133781338,6.1629,162.26,162.19,6.1655]
[1723133781544,15.4025,162.32,162.2,6.165]
[1723133781972,6.44355615,162.33,162.15,0.8297811]
[1723133782271,6.1623,162.28,162.21,6.1644]
[1723133782465,1.54092517,162.32,162.15,0.8297811]
[1723133782770,6.1615,162.3,162.23,6.164]
[1723133782944,6.44355615,162.33,162.16,1.23265229]
[1723133783144,22.1679,162.34,162.16,50.07265229]
[1723133783343,6.1615,162.3,162.17,20.0]
[1723133783567,15.4017,162.32,162.17,20.0]
[1723133783864,15.405,162.29,162.15,0.8297811]
[1723133784074,6.1633,162.26,162.19,6.1654]
[1723133784244,6.1626,162.27,162.2,6.1651]
[1723133784855,6.1626,162.27,162.21,6.1647]
[1723133785057,22.1679,162.34,162.15,2.06271522]
[1723133785058,22.1679,162.34,162.24,6.1636]
[1723133785255,6.1615,162.3,162.24,6.1636]
[1723133785781,6.1612,162.31,162.25,6.1633]
[1723133785946,22.1679,162.34,162.19,1.2328026]
[1723133786143,15.4015,162.33,162.15,2.06248872]
[1723133786371,6.1625,162.28,162.22,6.1643]
[1723133786771,1.54101217,162.27,162.15,0.8297811]
[1723133786975,1.54148978,162.26,162.15,0.8297811]
[1723133787190,6.1632,162.26,162.15,0.8297811]
[1723133787348,6.1628,162.27,162.2,6.1651]
[1723133787552,15.4032,162.31,162.15,0.8297811]
[1723133787751,2.84392423,162.32,162.15,0.8297811]
[1723133787752,6.1641,162.23,162.16,6.1664]
[1723133787993,1.54156094,162.27,162.15,0.8297811]
[1723133788300,15.3997,162.35,162.16,1.23299767]
[1723133788475,6.44200079,162.36,162.27,6.1625]
[1723133788657,1.54064367,162.33,162.15,0.8297811]
[1723133788852,6.1632,162.26,162.2,6.1651]
[1723133789075,15.4042,162.3,162.19,6.1655]
[1723133789382,15.4042,162.3,162.15,0.8297811]
[1723133789383,15.4063,162.28,162.16,6.1666]
[1723133789551,6.1643,162.23,162.15,0.8297811]
[1723133789757,15.4063,162.28,162.15,0.8297811]
[1723133789990,6.1634,162.25,162.19,6.1655]
[1723133790176,15.4063,162.28,162.15,0.8297811]
[1723133790177,1.54141301,162.27,162.15,0.8297811]
[1723133790382,6.1644,162.22,162.15,0.8297811]
[1723133790678,18.14536742,162.31,162.15,0.8297811]
[1723133790852,6.1624,162.28,162.15,2.06279936]
[1723133791054,15.4067,162.27,162.15,0.8297811]
[1723133791278,2.78841804,162.31,162.15,0.8297811]
[1723133791480,6.44295388,162.33,162.15,0.8297811]
[1723133791800,21.54141541,162.32,162.15,0.8297811]
[1723133791952,15.4076,162.26,162.15,0.8297811]
[1723133792149,6.1648,162.21,162.15,6.9964811]
[1723133792461,1.54160335,162.2,162.15,0.8297811]
[1723133792872,6.166,162.18,162.15,0.8297811]
[1723133793076,1.54194263,162.23,162.15,0.8297811]
[1723133793493,15.4064,162.27,162.15,0.8297811]
[1723133793986,6.1644,162.22,162.16,6.1666]
[1723133794170,6.1652,162.2,162.15,0.8297811]
[1723133794477,15.4057,162.28,162.15,0.8297811]
[1723133794679,30.8046,162.32,162.15,0.8297811]
[1723133794680,1.5412669,162.3,162.15,0.8297811]
[1723133794989,48.84,162.35,162.15,0.8297811]
[1723133794990,6.1631,162.26,162.2,6.1651]
[1723133795167,1.54112927,162.29,162.19,6.1655]
[1723133795368,6.1621,162.29,162.22,6.1644]
[1723133795678,6.1613,162.31,162.24,6.1634]
[1723133795989,6.1618,162.29,162.23,6.164]
[1723133796185,6.1619,162.29,162.16,50.0727859]
[1723133796366,6.1619,162.29,162.23,6.1637]
[1723133796567,6.1626,162.27,162.21,6.1645]
[1723133796767,6.164,162.23,162.17,6.1662]
[1723133796960,6.1637,162.24,162.19,6.1655]
[1723133797159,15.4017,162.32,162.21,6.1648]
[1723133797472,15.4047,162.29,162.15,0.8297811]
[1723133797681,6.1618,162.29,162.15,0.8297811]
[1723133797981,15.4014,162.33,162.16,1.23284634]
[1723133798389,6.1603,162.33,162.27,6.1625]
[1723133798600,6.1591,162.36,162.3,6.1611]
[1723133798763,1.54030024,162.35,162.2,48.84]
[1723133798960,6.4922,162.4,162.2,48.84]
[1723133798961,6.1599,162.34,162.28,6.1621]
[1723133799285,6.1599,162.34,162.28,6.1618]
[1723133799490,1.54045204,162.33,162.19,16.1865]
[1723133799668,1.5406276,162.38,162.2,20.0]
[1723133799869,6.1614,162.3,162.24,6.1633]
[1723133800192,1.54092375,162.29,162.2,20.0]
[1723133800367,15.3996,162.35,162.23,6.1637]
[1723133800368,1.54092375,162.34,162.23,6.1637]
[1723133800560,1.54092375,162.34,162.17,6.1464]
[1723133800561,15.4014,162.33,162.17,6.1464]
[1723133800865,1.54092375,162.34,162.18,6.1659]
[1723133800866,15.4033,162.31,162.18,6.1659]
[1723133801072,6.1641,162.23,162.1,15.68740538]
[1723133801276,15.4054,162.28,162.11,1.23319317]
[1723133801483,16.94689147,162.28,162.1,15.68740538]
[1723133801782,6.1638,162.24,162.18,6.1658]
[1723133801970,6.1638,162.24,162.11,1.23332735]
[1723133801971,16.3976,162.29,162.24,6.1635]
[1723133802168,6.196,162.33,162.12,1.23279378]
[1723133802373,6.196,162.33,162.16,1.23282986]
[1723133802584,6.1599,162.34,162.16,1.23282986]
[1723133802779,6.1618,162.29,162.23,6.1637]
[1723133803093,1.54082215,162.33,162.15,49.6697811]
[1723133803286,15.5776,162.36,162.16,21.23252195]
[1723133803680,1.54061426,162.35,162.16,20.0]
[1723133803880,15.4006,162.34,162.16,20.0]
[1723133804081,15.4006,162.34,162.16,21.23282182]
[1723133804287,6.161,162.32,162.26,6.1628]
[1723133804473,15.5776,162.36,162.16,21.23282182]
[1723133805014,6.1591,162.36,162.3,6.1611]
[1723133805175,6.196,162.4,162.2,1.232191]
[1723133805391,1.5403069,162.39,162.2,20.0]
[1723133805698,6.1599,162.34,162.28,6.1621]
[1723133805900,15.3957,162.39,162.21,1.23224528]
[1723133806071,6.44033125,162.41,162.21,1.23214907]
[1723133806498,6.1583,162.39,162.23,48.84]
[1723133806687,8.90844535,162.45,162.25,6.3745]
[1723133806688,15.34748944,162.45,162.25,6.3745]
[1723133806872,6.1571,162.42,162.35,6.1591]
[1723133807072,6.1573,162.41,162.34,6.1598]
[1723133807309,1.53977046,162.4,162.27,48.84]
[1723133807470,12.56984409,162.45,162.28,20.0]
[1723133807672,15.3914,162.43,162.31,6.1609]
[1723133807867,1.53997317,162.42,162.31,6.1609]
[1723133808189,6.1596,162.35,162.29,6.1617]
[1723133808500,1.54009322,162.34,162.28,6.1621]
[1723133808673,46.54009322,162.34,162.28,6.1621]
[1723133808877,45.0,162.34,162.29,6.1617]
[1723133809077,45.0,162.35,162.29,6.1616]
[1723133809272,45.0,162.35,162.26,1.23215457]
[1723133809492,6.1583,162.39,162.25,6.3745]
[1723133809687,15.3904,162.44,162.33,6.1602]
[1723133809881,6.158,162.39,162.26,20.0]
[1723133810082,6.1584,162.38,162.32,6.1606]
[1723133810283,15.3904,162.44,162.33,6.1602]
[1723133810576,6.1587,162.38,162.31,6.161]
[1723133810777,6.1587,162.38,162.32,6.1606]
[1723133811175,46.53993949,162.37,162.25,6.3745]
[1723133811376,6.1614,162.31,162.24,6.1634]
[1723133811685,45.0,162.3,162.19,6.4383]
[1723133812182,45.0,162.3,162.25,6.163]
[1723133812386,6.1622,162.28,162.19,6.4383]
[1723133812595,46.54087009,162.27,162.23,6.164]
[1723133812910,6.1632,162.26,162.19,6.1652]
[1723133813130,45.0,162.25,162.19,6.1652]
[1723133813410,6.1635,162.25,162.18,6.1657]
[1723133813574,6.1635,162.25,162.15,0.8297811]
[1723133813773,45.0,162.24,162.15,0.8297811]
[1723133814473,45.0,162.25,162.15,0.8297811]
[1723133814672,45.0,162.26,162.23,6.164]
[1723133815004,45.0,162.26,162.21,6.1645]
[1723133815297,45.0,162.26,162.23,6.164]